Cogmind - Beta 14 @@@ ROGUE MODE // 2024.10.03 @ 12:08:31 Player: SpaceWalrus Result: Destroyed by G-50 Soldier with Heavy Laser Performance ------------- Evolutions (4) 2000 Regions Visited (7) 1400 Robots Destroyed (79) 395 Value Destroyed (2649) 2649 Prototype IDs (30) 600 Alien Tech Used (0) 0 Bonus (356) 356 TOTAL SCORE: 7400 Bonus ------- High Alert Combat Kills 56 Aligned with FarCom 300 Cogmind --------- Core Integrity 0/850 Matter 288/300 Energy 68/100 System Corruption 1% Temperature Cool (9) Movement Core (50) Location -6/Factory Parts ------- > --- POWER (2) -------- (None) > --- PROPULSION (4) --- (None) > --- UTILITY (6) ------ Experimental Targeting Computer Hacking Suite > --- WEAPON (3) ------- (None) > --- INVENTORY (5) ---- Advanced Signal Interpreter Experimental Targeting Computer Cloak of Protection Improved Shield Generator Hacking Suite Peak State ------------ > --- POWER ------------ Micro Nuclear Core Light Angular Momentum Engine > --- PROPULSION ------- Armored Huge Wheel Armored Huge Wheel > --- UTILITY ---------- Advanced Heat Sink Advanced Heat Sink Medium Storage Unit Experimental Targeting Computer Hacking Suite System Shield > --- WEAPON ----------- Plasma Rifle Phase Cannon Heavy Machine Gun > --- INVENTORY -------- Light Nuclear Core Armored Huge Wheel Advanced Signal Interpreter Experimental Targeting Computer Cloak of Protection Improved Shield Generator Hacking Suite Hacking Suite Gatling Laser [Rating: 67] Favorites ----------- Power Light Nuclear Core Engine Ion Engine Power Core Light Nuclear Core Propulsion Titanium Leg Leg Titanium Leg Wheel Armored Huge Wheel Utility Hacking Suite Device Improved Heat Sink Storage Small Storage Unit Processor Advanced Targeting Computer Hackware Hacking Suite Weapon Field Laser Energy Gun Field Laser Energy Cannon Phase Cannon Ballistic Gun Assault Rifle Ballistic Cannon Advanced Assault Cannon Build | -11 -10 -10 -10 -9 -8 -7 -6 ------- Run | Yrd Mat Min Exi Min Mat Fac Fac Slots Evolved 8 | . . . . . 4 2 2 Power 1 | . . . . . . 1 . Propulsion 2 | . . . . . 1 . 1 Utility 4 | . . . . . 2 1 1 Weapon 1 | . . . . . 1 . . Parts Attached 104 | 10 5 6 . 3 9 18 53 Power 17 | 2 1 1 . . . 3 10 Engine 10 | 2 1 1 . . . 1 5 Core 7 | . . . . . . 2 5 Reactor . | . . . . . . . . Propulsion 23 | 2 2 2 . . 3 1 13 Treads . | . . . . . . . . Leg 17 | 2 2 2 . . 3 1 7 Wheel 6 | . . . . . . . 6 Hover . | . . . . . . . . Flight . | . . . . . . . . Utility 31 | 3 1 1 . 2 2 7 15 Device 20 | 2 . . . 1 2 4 11 Storage 4 | 1 . . . 1 . . 2 Processor 5 | . 1 1 . . . 1 2 Hackware 2 | . . . . . . 2 . Protection . | . . . . . . . . Artifact . | . . . . . . . . Weapon 33 | 3 1 2 . 1 4 7 15 Energy Gun 13 | 2 . 1 . . 3 3 4 Energy Cannon 7 | . . . . . . 1 6 Ballistic Gun 8 | 1 1 1 . 1 1 . 3 Ballistic Cannon 5 | . . . . . . 3 2 Launcher . | . . . . . . . . Special Weapon . | . . . . . . . . Impact Weapon . | . . . . . . . . Slashing Weapon . | . . . . . . . . Piercing Weapon . | . . . . . . . . Special Melee Weapon . | . . . . . . . . Unidentified Prototypes 5 | . . . . . . 2 3 Parts Lost 27 | . . 1 . . . 3 23 Power 8 | . . 1 . . . 1 6 Propulsion 5 | . . . . . . . 5 Utility 6 | . . . . . . 1 5 Weapon 8 | . . . . . . 1 7 Highest Loss Streak 16 | . . 1 . . . 2 16 To Critical Strikes 1 | . . . . . . . 1 Average Slot Usage (%) 95 | . 99 99 92 98 97 98 88 Engine 7 | . 14 13 14 14 9 5 3 Core 4 | . . . . . . 9 6 Leg 22 | . 28 28 28 28 25 23 15 Wheel 1 | . . . . . . . 4 Device 11 | . 15 14 . 2 18 10 11 Storage 4 | . . . . 10 9 7 5 Processor 9 | . 12 14 21 14 9 8 6 Hackware 6 | . . . . . . 9 13 Energy Gun 10 | . 14 14 14 14 17 12 4 Energy Cannon 2 | . . . . . . 2 6 Ballistic Gun 7 | . 13 14 14 14 9 5 2 Ballistic Cannon 1 | . . . . . . 1 4 Peak Build Rating 67 | 9 10 11 9 11 28 45 67 Average Rating 32 | 4 9 10 8 9 26 38 53 On Entrance 14 | . 9 10 9 8 10 28 44 Naked Turns . | . . . . . . . . Heaviest Build 52 | 13 10 11 10 14 22 33 52 Greatest Support 71 | 20 20 20 20 20 51 52 71 Greatest Overweight (x) 3 | . . . . . 1 . 3 Average Overweight (x) . | . . . . . . . . Largest Inventory Capacity 10 | 8 5 5 5 8 8 8 10 Average Capacity 7 | 6 5 5 5 7 8 8 9 Most Carried 10 | 5 5 5 5 7 8 8 10 Average Carried 6 | 2 4 4 4 5 7 7 8 Final Capacity 8 | 5 5 5 5 8 8 8 5 Final Carried 8 | 3 5 5 5 7 8 8 5 Class Distribution -------------------- 40% | Hacker-Skirmisher 20% | Scavenger-Mutant 17% | Skirmisher 15% | Mutant 5% | Scavenger-Skirmisher Dominant Class ---------------- Mutant | -10/Materials Scavenger-Mutant | -10/Mines Scavenger-Mutant | -10/Exiles Scavenger-Mutant | -9/Mines Skirmisher | -8/Materials Skirmisher | -7/Factory Hacker-Skirmisher | -6/Factory Resources | -11 -10 -10 -10 -9 -8 -7 -6 ----------- Run | Yrd Mat Min Exi Min Mat Fac Fac Matter Collected 2076 | 292 174 108 . 68 . 381 1053 Remotely . | . . . . . . . . Salvage Created 3628 | 30 335 164 . 80 . 412 2607 Parts 180 | 2 21 12 . 7 . 35 103 Haulers Intercepted 5 | . 2 . . . . . 3 Recyclers Shooed 6 | 1 1 . . . . . 4 Parts Field Recycled . | . . . . . . . . Retrieved Matter . | . . . . . . . . Parts Self-Destructed . | . . . . . . . . Prevented . | . . . . . . . . Kills | -11 -10 -10 -10 -9 -8 -7 -6 ------- Run | Yrd Mat Min Exi Min Mat Fac Fac Combat Hostiles Destroyed 46 | . 3 3 . 3 . 8 29 Guns 22 | . 3 3 . 3 . 5 8 Cannons 22 | . . . . . . 3 19 Classes Destroyed 11 | 1 5 . . 1 . 2 2 Worker 5 | . 1 . . . . . 4 Builder 8 | . 2 2 . . . . 4 Tunneler 3 | 1 . . . 2 . . . Hauler 5 | . 2 . . . . . 3 Recycler 5 | . . . . . . . 5 Watcher 7 | . 2 . . . . 1 4 Swarmer 6 | . . . . 3 . . 3 Grunt 24 | . 3 3 . . . 2 16 Sentry 3 | . . . . . . . 3 Hunter 4 | . . . . . . 2 2 Programmer 9 | . . . . . . 4 5 Best Kill Streak 9 | 1 2 2 . 3 . 2 9 Combat Bots Only 7 | . 2 2 . 3 . 2 7 Max Kills in Single Turn 2 | 1 1 1 . 1 . 1 2 Gunslinging . | . . . . . . . . Exploded . | . . . . . . . . Melee . | . . . . . . . . Uniques/NPCs Destroyed . | . . . . . . . . Combat | -11 -10 -10 -10 -9 -8 -7 -6 -------- Run | Yrd Mat Min Exi Min Mat Fac Fac Hostile Shots Fired 616 | . 45 17 . 15 . 34 505 Missed 199 | . 12 3 . 4 . 12 168 Damage Taken 5273 | . 321 162 . 87 . 331 4372 Core 1030 | . 68 43 . 17 . 40 862 Absorbed by Shields 47 | . . . . . . 47 . Ignored by Resistances 26 | . . . . . . . 26 Core Remaining (%) 85 | 100 . . . 48 100 94 . Volleys Fired 210 | 2 43 17 . 12 . 19 117 Largest 3 | 2 2 2 . 2 . 3 3 Hottest 223 | 70 70 85 . 85 . 191 223 Shots Fired 502 | 4 86 35 . 24 . 55 298 Gun 311 | 4 86 35 . 24 . 49 113 Cannon 191 | . . . . . . 6 185 Launcher . | . . . . . . . . Special . | . . . . . . . . Kinetic 210 | 2 43 18 . 12 . 19 116 Thermal 290 | 2 43 17 . 12 . 36 180 Explosive . | . . . . . . . . Electromagnetic 2 | . . . . . . . 2 Robot Hit Streak 17 | 1 10 5 . 10 . 12 17 Robot Miss Streak 9 | 1 4 3 . 3 . 2 9 Penetration Max . | . . . . . . . . Secondary Targets 1 | . . . . 1 . . . Max Gunslinging Chain 1 | . . . . 1 . . . Shots Hit Robots 318 | 2 52 20 . 16 . 32 196 Core Hits 152 | 1 19 8 . 7 . 15 102 Critical Kills 2 | . . . . . . . 2 Critical Parts Destroyed . | . . . . . . . . Critical Strikes 10 | . 3 . . . . 1 6 Burn 6 | . 3 . . . . 1 2 Meltdown 2 | . . . . . . . 2 Blast 2 | . . . . . . . 2 Melee Attacks . | . . . . . . . . Impact . | . . . . . . . . Slashing . | . . . . . . . . Piercing . | . . . . . . . . Sneak Attacks . | . . . . . . . . Combat Hostiles . | . . . . . . . . Follow-up Attacks . | . . . . . . . . Damage Inflicted 7515 | 32 679 264 . 167 . 580 5793 Guns 3698 | 32 676 264 . 167 . 486 2073 Cannons 3742 | . . . . . . 94 3648 Explosions 56 | . . . . . . . 56 Melee . | . . . . . . . . Ramming 19 | . 3 . . . . . 16 Kinetic 2502 | 8 325 151 . 73 . 120 1825 Thermal 4870 | 24 351 113 . 94 . 460 3828 Explosive . | . . . . . . . . Electromagnetic 124 | . . . . . . . 124 Impact . | . . . . . . . . Slashing . | . . . . . . . . Piercing . | . . . . . . . . Highest Corruption 3 | . 1 1 1 1 . 3 1 Average Corruption 1 | . 1 1 1 1 . 1 1 Corruption Purged . | . . . . . . . . Corruption Blocked . | . . . . . . . . Effects 41 | . 3 4 2 2 . 14 16 Message Errors 13 | . . 2 . 2 . 5 4 Matter Fused 12 | . . 1 1 . . 5 5 Heat Flow Errors 5 | . 2 . . . . 1 2 Energy Discharges 3 | . . . . . . 1 2 Parts Rejected 2 | . . . . . . . 2 Data Loss (minor) 2 | . . . 1 . . 1 . Misfires 1 | . . 1 . . . . . Alerts 3 | . 1 . . . . 1 1 Overload Shots . | . . . . . . . . Overflow Damage 15 | . . . . . . . 15 Projectiles 15 | . . . . . . . 15 Explosions . | . . . . . . . . Melee . | . . . . . . . . Knockbacks 8 | . . . . . . . 8 Impact 1 | . . . . . . . 1 Kinetic 6 | . . . . . . . 6 Secondary 1 | . . . . . . . 1 Self-Inflicted Damage 6 | . . . . . . . 6 Shots . | . . . . . . . . Rammed 4 | . . . . . . . 4 Targets Rammed 5 | . 1 . . . . . 4 Kicked 1 | . 1 . . . . . . Crushed . | . . . . . . . . Highest Temperature 504 | 40 297 150 . 120 . 208 504 Average Temperature 111 | 20 40 50 . 48 . 59 154 Received Heat Transfer 1716 | . 105 90 . . . 30 1491 Effects 6 | . . . . . . . 6 Shutdowns 1 | . . . . . . . 1 Energy Bleed 1 | . . . . . . . 1 Interference 3 | . . . . . . . 3 Short Circuit 1 | . . . . . . . 1 Siege Activations . | . . . . . . . . Robots Corrupted . | . . . . . . . . Combat Hostiles . | . . . . . . . . Parts Fried . | . . . . . . . . Impact Corruptions . | . . . . . . . . Robots Melted 3 | . . . . . . . 3 Combat Hostiles 2 | . . . . . . . 2 Parts Melted 18 | . 1 . . . . 3 14 Heat Transferred 9100 | 74 1258 296 . 222 . 1001 6249 Parts Sabotaged . | . . . . . . . . Parts Stolen . | . . . . . . . . Parts Stripped . | . . . . . . . . Power Chain Reactions . | . . . . . . . . Alert | -11 -10 -10 -10 -9 -8 -7 -6 ------- Run | Yrd Mat Min Exi Min Mat Fac Fac Peak Influence 530 | 5 122 82 . 80 43 93 530 Initial 31 | . 3 2 . . 31 18 21 Average 104 | 1 50 47 . 69 36 29 216 Maximum Alert Level 2 | . . . . . . . 2 Low Security (%) 82 | 100 100 100 . 100 100 100 51 Level 1 14 | . . . . . . . 41 Level 2 2 | . . . . . . . 7 Level 3 . | . . . . . . . . Level 4 . | . . . . . . . . Level 5 . | . . . . . . . . High Security . | . . . . . . . . Max Security . | . . . . . . . . Squads Dispatched 18 | . 1 . . . . 5 12 Investigation 3 | . 1 . . . . 2 . Extermination 8 | . . . . . . 3 5 Reinforcement 3 | . . . . . . . 3 Assault . | . . . . . . . . Garrison 4 | . . . . . . . 4 Intercept . | . . . . . . . . Searches Triggered . | . . . . . . . . Construction Impeded 1 | . . . . . . . 1 Haulers Reinforced 1 | . . . . . . . 1 Active Scanning Responses . | . . . . . . . . Cargo Convoy Interrupts . | . . . . . . . . Stealth | -11 -10 -10 -10 -9 -8 -7 -6 --------- Run | Yrd Mat Min Exi Min Mat Fac Fac Distress Signals 2 | . 1 . . . . . 1 Communications Jammed . | . . . . . . . . Distress Signals . | . . . . . . . . Times Spotted 81 | . 11 4 . 3 . 9 54 Peak Tracking Total 7 | . 5 2 . 3 . 2 7 Tactical Retreats 3 | . 1 1 . . . . 1 Traps | -11 -10 -10 -10 -9 -8 -7 -6 ------- Run | Yrd Mat Min Exi Min Mat Fac Fac Traps Triggered 4 | . 2 . . . . 2 . Indirectly . | . . . . . . . . Trap Hack Attempts . | . . . . . . . . Triggered . | . . . . . . . . Disarmed 3 | . . . . . 3 . . Reprogrammed . | . . . . . . . . Reused . | . . . . . . . . Traps Extracted . | . . . . . . . . Installed . | . . . . . . . . Triggered . | . . . . . . . . Machines | -11 -10 -10 -10 -9 -8 -7 -6 ---------- Run | Yrd Mat Min Exi Min Mat Fac Fac Machines Disabled 11 | . . . . . . 2 9 Max in Single Turn 2 | . . . . . . 1 2 Garrison Access 1 | . . . . . . . 1 Machines Repaired . | . . . . . . . . Machines Dismantled . | . . . . . . . . Machines Sabotaged . | . . . . . . . . Overloaded Fab Kills . | . . . . . . . . Hacking | -11 -10 -10 -10 -9 -8 -7 -6 --------- Run | Yrd Mat Min Exi Min Mat Fac Fac Machines Accessed 8 | . 2 . 1 . 2 2 1 Terminals 6 | . 2 . . . 2 2 . Fabricators . | . . . . . . . . Repair Stations . | . . . . . . . . Recycling Units . | . . . . . . . . Scanalyzers . | . . . . . . . . Garrison Access 1 | . . . . . . . 1 Total Hacks 14 | . 2 . 1 . 5 5 1 Successful 7 | . 1 . 1 . 4 . 1 Failed 7 | . 1 . . . 1 5 . Catastrophic 3 | . . . . . . 3 . Database Lockouts . | . . . . . . . . Manual 1 | . . . 1 . . . . Terminals 12 | . 2 . . . 5 5 . Fabricators . | . . . . . . . . Repair Stations . | . . . . . . . . Recycling Units . | . . . . . . . . Scanalyzers . | . . . . . . . . Garrison Access 1 | . . . . . . . 1 Terminal Hacks 6 | . 1 . 1 . 4 . . Prototype ID Bank 1 | . 1 . . . . . . Disarm Traps 2 | . . . . . 2 . . Assault Status 1 | . . . . . 1 . . Zone Layout 1 | . . . . . 1 . . Derelict Proto ID Bank 1 | . . . 1 . . . . Fabricator Hacks . | . . . . . . . . Repair Station Hacks . | . . . . . . . . Recycling Unit Hacks . | . . . . . . . . Scanalyzer . | . . . . . . . . Garrison Access Hacks 1 | . . . . . . . 1 Seal Access 1 | . . . . . . . 1 Unauthorized Hacks . | . . . . . . . . Terminals . | . . . . . . . . Fabricators . | . . . . . . . . Repair Stations . | . . . . . . . . Recycling Units . | . . . . . . . . Scanalyzers . | . . . . . . . . Garrison Access . | . . . . . . . . Data Cores Recovered . | . . . . . . . . Used . | . . . . . . . . Hacking Detections 3 | . 1 . . . . 2 . Full Trace Events 2 | . . . . . . 2 . Feedback Events 1 | . . . . . . 1 . Corruption 1 | . . . . . . 1 . Feedback Blocked . | . . . . . . . . Robot Schematics Acquired . | . . . . . . . . Robots Built . | . . . . . . . . Authchips . | . . . . . . . . Time . | . . . . . . . . Total Robot Build Rating . | . . . . . . . . Part Schematics Acquired . | . . . . . . . . Parts Built . | . . . . . . . . Authchips . | . . . . . . . . Time . | . . . . . . . . Total Part Build Rating . | . . . . . . . . Parts Repaired . | . . . . . . . . Time . | . . . . . . . . Parts Recycled . | . . . . . . . . Recycled Matter . | . . . . . . . . Retrieved Matter . | . . . . . . . . Retrieved Components . | . . . . . . . . Parts Scanalyzed . | . . . . . . . . Part Schematics Acquired . | . . . . . . . . Parts Damaged . | . . . . . . . . Bothacking | -11 -10 -10 -10 -9 -8 -7 -6 ------------ Run | Yrd Mat Min Exi Min Mat Fac Fac Used RIF Installer . | . . . . . . . . Robots Hacked . | . . . . . . . . Non-combat . | . . . . . . . . Combat . | . . . . . . . . Robot Hacks Applied . | . . . . . . . . Relay Couplers Released . | . . . . . . . . Fabnet Peak Effective % . | . . . . . . . . Robots Rewired . | . . . . . . . . Allies Hacked . | . . . . . . . . Hacks Repelled . | . . . . . . . . Allies | -11 -10 -10 -10 -9 -8 -7 -6 -------- Run | Yrd Mat Min Exi Min Mat Fac Fac Total Allies . | . . . . . . . . Largest Group . | . . . . . . . . Highest-Rated Group . | . . . . . . . . Highest-Rated Ally . | . . . . . . . . Total Orders . | . . . . . . . . Ally Attacks . | . . . . . . . . Total Damage . | . . . . . . . . Kills . | . . . . . . . . Allies Corrupted . | . . . . . . . . Allies Melted . | . . . . . . . . Intel | -11 -10 -10 -10 -9 -8 -7 -6 ------- Run | Yrd Mat Min Exi Min Mat Fac Fac Robot Analysis Total . | . . . . . . . . Derelict Logs Recovered 2 | . . 1 . 1 . . . Drone Launches . | . . . . . . . . Drone Recoveries . | . . . . . . . . Exploration | -11 -10 -10 -10 -9 -8 -7 -6 ------------- Run | Yrd Mat Min Exi Min Mat Fac Fac Turns Passed 5887 | 71 849 561 268 377 346 1394 2021 Spaces Moved 3616 | 43 574 298 222 278 199 885 1117 Core 26 | 8 . . . . . . 18 Treads . | . . . . . . . . Legs 3222 | 35 574 298 222 278 199 885 731 Wheels 368 | . . . . . . . 368 Hover . | . . . . . . . . Flight . | . . . . . . . . Fastest Speed 50 | 50 120 120 120 120 120 126 50 Average Speed 122 | 106 120 120 120 120 134 128 120 Slowest Speed 200 | 120 120 120 120 120 190 130 200 Overloaded Moves . | . . . . . . . . Propulsion Burnouts . | . . . . . . . . Robots Hopped . | . . . . . . . . Cave-ins Triggered . | . . . . . . . . Exploration Rate (%) 38 | 5 58 74 60 55 21 16 21 Regions Visited 7 Branch Regions 3 Pre-discovered Areas . | . . . . . . . . Known Exits Taken 4 | . . 1 1 1 1 . . Unknown Exits Taken 3 | 1 1 . . . . 1 . Scrap Searched 3 | . . 1 . 2 . . . Spaces Dug . | . . . . . . . . Terrain Destroyed 35 | . . . . . . . 35 Melee . | . . . . . . . . Projectile 35 | . . . . . . . 35 AOE . | . . . . . . . . Terrain Rammed . | . . . . . . . . Walls Destroyed . | . . . . . . . . Machines Disabled . | . . . . . . . . Actions | -11 -10 -10 -10 -9 -8 -7 -6 --------- Run | Yrd Mat Min Exi Min Mat Fac Fac Total 4656 | 62 651 468 224 298 279 1101 1573 Wait 586 | . 18 143 . 2 59 155 209 Move 3609 | 42 573 297 221 277 198 884 1117 Hop . | . . . . . . . . Pick Up 67 | 8 5 1 1 3 8 9 32 Fast Attach 26 | 2 . 1 . 1 1 10 11 Attach 46 | 5 1 1 . 1 7 4 27 Detach 4 | . . . . . . . 4 Swap 33 | 3 4 4 . 1 1 5 15 Drop 70 | . 6 4 2 1 5 15 37 Fire 210 | 2 43 17 . 12 . 19 117 Melee . | . . . . . . . . Ram 4 | . . . . . . . 4 Kick 1 | . 1 . . . . . . Crush . | . . . . . . . . Escape Stasis . | . . . . . . . . Rewire . | . . . . . . . . Trap . | . . . . . . . . Miscellaneous . | . . . . . . . . Route ------- -11/Scrapyard -10/Materials (discovered 4 exits: [*Mat x2] / [*Min x2]) -10/Mines (discovered 2 exits: [*Mat] / *Exi) -10/Exiles -9/Mines -8/Materials (discovered 2 exits: *Fac x2) -7/Factory -6/Factory (discovered 1 exit: [*Low]) History --------- Turn | Location | Event 10 | -11/Scrapyard | Discovered new exit (range 15) 72 | -11/Scrapyard | Entered Materials 193 | -10/Materials | Discovered new exit (range 15) 266 | -10/Materials | Discovered new exit (range 4) 298 | -10/Materials | Discovered new exit (range 8) 309 | -10/Materials | Build established: Mutant 763 | -10/Materials | Discovered new exit (range 7) 921 | -10/Materials | Entered Mines 1041 | -10/Mines | Discovered new exit (range 8) 1095 | -10/Mines | Learned Materials stockpile data 1239 | -10/Mines | Build established: Scavenger-Mutant 1461 | -10/Mines | Discovered new exit (range 12) 1474 | -10/Mines | Deemed a non-threat by the Exiles lab entrance 1481 | -10/Mines | Identified exit to Exiles 1482 | -10/Mines | Entered Exiles 1512 | -10/Exiles | Met 8R-AWN 1532 | -10/Exiles | Met EX-HEX 1566 | -10/Exiles | Met EX-BIN 1581 | -10/Exiles | Aligned with FarCom system 1582 | -10/Exiles | Given EX-Vault access code 1617 | -10/Exiles | Opened EX-Vault 1628 | -10/Exiles | Found Cloak of Protection 1651 | -10/Exiles | Warned to stay clear of 0b10 Research branches 1693 | -10/Exiles | Met EX-DEC 1740 | -10/Exiles | Discovered new exit (range 10) 1748 | -10/Exiles | Identified exit to Mines 1750 | -10/Exiles | Left Exiles lab with Cloak of Protection 1750 | -10/Exiles | Entered Mines 1757 | -9/Mines | Core integrity fell below 50% 2113 | -9/Mines | Discovered new exit (range 15) 2126 | -9/Mines | Identified exit to Materials 2127 | -9/Mines | Entered Materials 2127 | -8/Materials | Evolved 4 slots: Propulsion x1, Utility x2, Weapon x1 2128 | -8/Materials | Identified exit to Factory 2320 | -8/Materials | Discovered exit to Factory (range 15) 2473 | -8/Materials | Entered Factory 2473 | -7/Factory | Evolved 2 slots: Power x1, Utility x1 2495 | -7/Factory | Build established: Skirmisher 3570 | -7/Factory | Build established: Hacker-Skirmisher 3848 | -7/Factory | Discovered new exit (range 15) 3867 | -7/Factory | Entered another Factory area 3867 | -6/Factory | Evolved 2 slots: Propulsion x1, Utility x1 4420 | -6/Factory | Garrison activated, responded to threat 4515 | -6/Factory | Destroyed 7 combat bots 5251 | -6/Factory | Discovered new exit (range 16) 5573 | -6/Factory | Found Prototype Processor 5573 | -6/Factory | Identified Exp. Targeting Computer 5607 | -6/Factory | Found Exp. Targeting Computer 5785 | -6/Factory | Garrison activated, responded to threat 5844 | -6/Factory | Core integrity fell below 50% 5880 | -6/Factory | Core integrity fell below 20% 5888 | -6/Factory | Destroyed by G-50 Soldier with Heavy Laser Last Messages --------------- K-01 Serf collects debris. K-01 Serf destroyed. Slug penetrates P-60 Hacker. K-01 Serf collects debris. Slug penetrates Wall. Adv. Heat Sink destroyed. Slammed into P-60 Hacker. K-01 Serf collects debris. Gauss Rifle destroyed. Arm. Huge Wheel destroyed. K-01 Serf cleans the Terminal. Dropped Med. Storage Unit. Slammed into R-10 Processor. R-10 Processor knocked back. Slammed into R-10 Processor. Destabilizing: System interference. Exp. Targeting Computer temporarily disabled. Slammed into R-10 Processor. System Shield destroyed. System corrupted: Energy discharge (-32). Map ----- +----------------------------------------------------+ | ?????????????????????????????????????????????????? | | ?????????????????????????????????????????????????? | | ?????????????????????????????????????????????????? | | ?????????????????????????????????????????????????? | | ?????????????????????????????????????????????????? | | ?????????????????????????????????????????????????? | | ?????????????????????????????????????????????????? | | ?????????????????????????????????????????????????? | | ?????????????????????????????????????????????????? | | ?????????????????????????????????????????????????? | | ?????????????????????????????????????????????????? | | ???????????###########???????????????????????????? | | ???????????# """"" #???????????????????????????? | | ??????????# ""T"" ?????????????????????????????? | | ????????# ????????????###########????????? | | ???????# ??????????????# [ #????????? | | #########+#####???????????# #?????#### | | #######?????# "" !#???? | | % ##????# """ "" #???? | | "" """ """ #?????# "R """ #???? | | "" """"" """" % #?????# """*""" ##### | | "" """"" """ #??#??# ""[""" + | | % #? ???# =!%= %! # | | "" """ " ###########+##### [[[ "" | | "" """"" """"" R g [[ "" | | "" """"" """"" @ [[ "" | | g | | ? ! l Y ""T"" ? | | ? %u gg %"""""?? | | ?##### #### ############## ###+######? | | ?????# #??# # #??????????# p# % #? | | ?????# #??# ###??????????# # *%! #? | | ?????+ #??# #????????????# # ! ! #? | | ?????# #??# #????????????# %#" =% #? | | ?????# #??# #????????????# #"" % #? | | ?????# #??# #????????????# #""" #? | | ?????# #??# #????????????# #""" #? | | ?????# #??# #????????????# #""" ! #? | | ?????? ???#^^^^ #????????????# # #? | | ??????????????# #????????????# ##########? | | ??????????????# #????????????# #?######### | | ??????????????# ############## ### """"" | | ??????????????# # """"" | | ??????????????# # """ | | ??????????????# # ! | | ??????????????# + | | ??????????????# ######### | | ????????????######+################# ^ | | ????????????# #????????????# | | ????????????# #?############ | +----------------------------------------------------+ Best States ------------- Heat Dissipation 75 Energy Generation 28 Energy Capacity 465 Matter Stores 300 Matter Capacity 300 Sight Range 16 Robot Scan Range 15 Terrain Scan Range 16 Terrain Scan Density 85 Cloak Strength 5 EM Shielding 2 Resistance: KI 20 Evasion (%) 55 Targeting Accuracy 20 Offensive Hacking 10 Defensive Hacking 10 Item Schematics ----------------- None Robot Schematics ------------------ None Fabricated ------------ Nothing Alien Tech Used ----------------- None Achievements -------------- None Challenges ------------ None Game ------ Seed HeatClaymoresPenetrator Manual? 0 Play Time 00:48:27 Cumulative 32.8 hours Start 2024.10.03 @ 11:21:07 End 2024.10.03 @ 12:08:31 Sessions 1 Manual Loads 0 Difficulty Rogue Special Mode None Game No. 41 Rogue 41 Adventurer 0 Explorer 0 Win Type - Total 0 Types 0/0/0/0/0/0/0/0/0 Lore% 15 Gallery% 35 Achievement% 23 Wizard Run 0 Options --------- Layout 1 ASCII 0 Keyboard 0 Movement Numpad Keybinds 0 Fullscreen 1 Font 24/Smallcaps Map View 50x40 Zoom Use 0% Tactical HUD 0 Map Filters NONE Filters NONE Steam 1 RUN: d5f21338-0d69-4fd5-b7f7-43d10657cda7